lending/lending_fUSD_20250808
["ID","MTS","AMOUNT","RATE_DAILY","PERIOD"]
[377945807,1754623848683,-1435.24,0.00018889,2]
[377945809,1754623848692,-467.43,0.00018889,2]
[377945811,1754623848702,-400.0,0.00018889,2]
[377945813,1754623848711,-400.0,0.00018889,2]
[377945815,1754623848720,-841.42,0.00018889,2]
[377945817,1754623848730,-400.0,0.00018889,2]
[377945819,1754623848739,-734.09,0.00018889,2]
[377945821,1754623848748,-400.0,0.00018889,2]
[377945823,1754623848758,-400.0,0.00018889,2]
[377945825,1754623848768,-773.06,0.00018889,2]
[377945828,1754623848778,-1359.72,0.00018889,2]
[377945829,1754623848787,-1115.99,0.00018889,2]
[377945831,1754623848796,-1147.92,0.00018889,2]
[377945834,1754623848806,-820.88,0.00018889,2]
[377945835,1754623848815,-790.61,0.00018889,2]
[377945838,1754623848825,-1053.81,0.00018889,2]
[377945840,1754623848834,-1113.43,0.00018889,2]
[377945842,1754623848843,-212.75367017,0.00018889,2]
[377945844,1754623848853,-176.076091,0.00018889,2]
[377945846,1754623848863,-400.0,0.00018889,2]
[377945848,1754623848873,-13473.55,0.00018889,2]
[377945850,1754623848882,-400.0,0.00018889,2]
[377945852,1754623848891,-811.46,0.00018889,2]
[377945854,1754623848900,-529.18,0.00018889,2]
[377945856,1754623848909,-400.0,0.00018889,2]
[377945858,1754623848919,-806.42,0.00018889,2]
[377945860,1754623848928,-472.91,0.00018889,2]
[377945862,1754623848938,-1055.56,0.00018889,2]
[377945864,1754623848947,-400.0,0.00018889,2]
[377945866,1754623848956,-400.95,0.00018889,2]
[377945868,1754623848966,-574.16,0.00018889,2]
[377945870,1754623848975,-400.0,0.00018889,2]
[377945872,1754623848984,-400.0,0.00018889,2]
[377945874,1754623848994,-702.71,0.00018889,2]
[377945876,1754623849003,-400.0,0.00018889,2]
[377945878,1754623849013,-675.72,0.00018889,2]
[377945880,1754623849022,-741.49,0.00018889,2]
[377945882,1754623849031,-712.45,0.00018889,2]
[377945884,1754623849040,-400.0,0.00018889,2]
[377945886,1754623849050,-937.79,0.00018889,2]
[377945888,1754623849060,-151.0,0.00018889,2]
[377945890,1754623849069,-151.0,0.00018889,2]
[377945892,1754623849079,-151.0,0.00018889,2]
[377945894,1754623849088,-1032.3,0.00018889,2]
[377945896,1754623849097,-151.0,0.00018889,2]
[377945898,1754623849107,-400.0,0.00018889,2]
[377945900,1754623849116,-465.19,0.00018889,2]
[377945902,1754623849125,-517.93,0.00018889,2]
[377945904,1754623849134,-400.0,0.00018889,2]
[377945906,1754623849143,-827.3,0.00018889,2]
[377945908,1754623849152,-400.0,0.00018889,2]
[377945910,1754623849162,-400.0,0.00018889,2]
[377945912,1754623849173,-1206.25,0.00018889,2]
[377945914,1754623849183,-400.0,0.00018889,2]
[377945916,1754623849192,-409.4,0.00018889,2]
[377945918,1754623849202,-400.0,0.00018889,2]
[377945920,1754623849211,-1047.92,0.00018889,2]
[377945922,1754623849220,-1217.62,0.00018889,2]
[377945924,1754623849230,-400.0,0.00018889,2]
[377945926,1754623849240,-563.23,0.00018889,2]
[377945928,1754623849249,-484.85,0.00018889,2]
[377945930,1754623849258,-400.0,0.00018889,2]
[377945932,1754623849268,-1078.12,0.00018889,2]
[377945934,1754623849278,-400.0,0.00018889,2]
[377945936,1754623849287,-502.64,0.00018889,2]
[377945939,1754623849296,-805.94,0.00018889,2]
[377945941,1754623849309,-400.0,0.00018889,2]
[377945943,1754623849319,-729.86,0.00018889,2]
[377945945,1754623849328,-1394.21,0.00018889,2]
[377945947,1754623849337,-746.9,0.00018889,2]
[377945949,1754623849347,-400.0,0.00018889,2]
[377945951,1754623849357,-1375.62,0.00018889,2]
[377945953,1754623849366,-614.25,0.00018889,2]
[377945954,1754623849376,-555.56,0.00018889,2]
[377945957,1754623849387,-400.0,0.00018889,2]
[377945958,1754623849396,-175.820017,0.00018889,2]
[377945960,1754623849406,-400.0,0.00018889,2]
[377945963,1754623849415,-492.81,0.00018889,2]
[377945965,1754623849424,-400.0,0.00018889,2]
[377945967,1754623849433,-726.96,0.00018889,2]
[377945969,1754623849443,-400.0,0.00018889,2]
[377945971,1754623849452,-400.0,0.00018889,2]
[377945973,1754623849462,-230.57924284,0.0001889,2]
[377945974,1754623849471,-400.0,0.0001889,2]
[377945977,1754623849481,-400.0,0.0001889,2]
[377945978,1754623849490,-416.33,0.0001889,2]
[377945981,1754623849499,-896.77,0.0001889,2]
[377945983,1754623849509,-470.03,0.0001889,2]
[377945985,1754623849519,-699.5154943,0.0001889,2]
[377945987,1754623849528,-400.39,0.0001889,2]
[377945989,1754623849537,-400.0,0.0001889,2]
[377945991,1754623849546,-373.75469765,0.0001889,2]
[377945993,1754623849555,-400.0,0.0001889,2]
[377945994,1754623849565,-400.0,0.0001889,2]
[377945997,1754623849575,-400.0,0.0001889,2]
[377945999,1754623849584,-400.0,0.0001889,2]
[377946001,1754623849594,-649.98,0.0001889,2]
[377946003,1754623849604,-819.94,0.0001889,2]
[377946005,1754623849613,-400.0,0.0001889,2]
[377946007,1754623849622,-651.39,0.0001889,2]
[377946009,1754623849632,-1777.25,0.0001889,2]
[377946011,1754623849641,-400.0,0.0001889,2]
[377946013,1754623849650,-412.2,0.0001889,2]
[377946015,1754623849659,-400.0,0.0001889,2]
[377946017,1754623849668,-400.0,0.0001889,2]
[377946019,1754623849678,-400.0,0.0001889,2]
[377946021,1754623849688,-506.48,0.0001889,2]
[377946023,1754623849698,-400.0,0.0001889,2]
[377946025,1754623849707,-714.85,0.0001889,2]
[377946027,1754623849716,-415.14,0.0001889,2]
[377946029,1754623849725,-400.0,0.0001889,2]
[377946031,1754623849735,-400.0,0.0001889,2]
[377946033,1754623849744,-400.0,0.0001889,2]
[377946035,1754623849753,-691.42,0.0001889,2]
[377946037,1754623849763,-400.0,0.0001889,2]
[377946039,1754623849771,-421.86,0.0001889,2]
[377946041,1754623849781,-685.07,0.0001889,2]
[377946043,1754623849791,-400.0,0.0001889,2]
[377946045,1754623849799,-482.53,0.0001889,2]
[377946047,1754623849809,-375.3188669,0.0001889,2]
[377946049,1754623849819,-400.0,0.0001889,2]
[377946051,1754623849828,-821.92,0.0001889,2]
[377946053,1754623849837,-456.82,0.0001889,2]
[377946055,1754623849846,-400.0,0.0001889,2]
[377946057,1754623849855,-400.0,0.0001889,2]
[377946059,1754623849864,-648.43,0.0001889,2]
[377946061,1754623849874,-604.59,0.0001889,2]
[377946063,1754623849882,-400.0,0.0001889,2]
[377946065,1754623849891,-411.84,0.0001889,2]
[377946067,1754623849901,-529.3,0.0001889,2]
[377946069,1754623849911,-400.0,0.0001889,2]
[377946071,1754623849919,-404.88743298,0.0001889,2]
[377946073,1754623849928,-1098.79,0.0001889,2]
[377946075,1754623849939,-844.48,0.0001889,2]
[377946077,1754623849948,-400.0,0.0001889,2]
[377946079,1754623849958,-421.52,0.0001889,2]
[377946081,1754623849967,-748.55,0.0001889,2]
[377946084,1754623849976,-400.0,0.0001889,2]
[377946086,1754623849986,-400.0,0.0001889,2]
[377946088,1754623849995,-679.93,0.0001889,2]
[377946090,1754623850004,-407.18,0.0001889,2]
[377946092,1754623850013,-400.0,0.0001889,2]
[377946094,1754623850022,-400.0,0.0001889,2]
[377946096,1754623850030,-400.0,0.0001889,2]
[377946097,1754623850039,-400.0,0.0001889,2]
[377946099,1754623850049,-1771.77,0.0001889,2]
[377946102,1754623850058,-400.0,0.0001889,2]
[377946104,1754623850067,-400.0,0.0001889,2]
[377946106,1754623850077,-542.46,0.0001889,2]
[377946108,1754623850086,-400.0,0.0001889,2]
[377946110,1754623850095,-887.03,0.0001889,2]
[377946112,1754623850106,-1066.16,0.0001889,2]
[377946114,1754623850115,-400.0,0.0001889,2]
[377946116,1754623850124,-400.0,0.0001889,2]
[377946118,1754623850133,-400.0,0.0001889,2]
[377946120,1754623850143,-533.46,0.0001889,2]
[377946122,1754623850152,-400.0,0.0001889,2]
[377946141,1754623850335,-400.0,0.0001889,2]
[377946143,1754623850346,-151.0,0.0001889,2]
[377946145,1754623850357,-568.82,0.0001889,2]
[377946147,1754623850367,-151.0,0.0001889,2]
[377946150,1754623850377,-466.34525608,0.0001889,2]
[377946151,1754623850387,-400.0,0.0001889,2]
[377946154,1754623850398,-483.59,0.0001889,2]
[377946156,1754623850407,-400.0,0.0001889,2]
[377946158,1754623850416,-400.0,0.0001889,2]
[377946160,1754623850425,-1058.34,0.0001889,2]
[377946162,1754623850436,-554.32,0.0001889,2]
[377946164,1754623850445,-726.72,0.0001889,2]
[377946166,1754623850456,-1593.18,0.0001889,2]
[377946167,1754623850465,-888.54,0.0001889,2]
[377946170,1754623850475,-400.0,0.0001889,2]
[377946172,1754623850484,-400.0,0.0001889,2]
[377946173,1754623850493,-841.92,0.0001889,2]
[377946175,1754623850502,-400.0,0.0001889,2]
[377946178,1754623850511,-400.0,0.0001889,2]
[377946180,1754623850520,-400.0,0.0001889,2]
[377946182,1754623850530,-1172.51,0.0001889,2]
[377946184,1754623850539,-1106.46,0.0001889,2]
[377946186,1754623850548,-702.09,0.0001889,2]
[377946187,1754623850558,-400.0,0.0001889,2]
[377946190,1754623850568,-400.0,0.0001889,2]
[377946191,1754623850577,-400.0,0.0001889,2]
[377946193,1754623850587,-400.0,0.0001889,2]
[377946196,1754623850596,-432.04,0.0001889,2]
[377946197,1754623850605,-415.54,0.0001889,2]
[377946199,1754623850614,-400.0,0.0001889,2]
[377946201,1754623850624,-377.6767097,0.0001889,2]
[377946203,1754623850633,-154.37908988,0.0001889,2]
[377946204,1754623850642,-498.39,0.0001889,2]
[377946205,1754623850651,-489.67,0.0001889,2]
[377946206,1754623850661,-1203.65,0.0001889,2]
[377946207,1754623850670,-400.0,0.0001889,2]
[377946208,1754623850680,-400.0,0.0001889,2]
[377946209,1754623850692,-836.24,0.0001889,2]
[377946210,1754623850701,-400.0,0.0001889,2]
[377946211,1754623850710,-1439.73,0.0001889,2]
[377946212,1754623850720,-400.0,0.0001889,2]
[377946213,1754623850729,-826.79,0.0001889,2]
[377946214,1754623850738,-400.0,0.0001889,2]
[377946215,1754623850748,-400.0,0.0001889,2]
[377946217,1754623850757,-984.23,0.0001889,2]
[377946219,1754623850766,-207.0194494,0.0001889,2]
[377946221,1754623850775,-766.1,0.0001889,2]
[377946223,1754623850784,-400.0,0.0001889,2]
[377946225,1754623850794,-890.78,0.0001889,2]
[377946227,1754623850803,-483.39,0.0001889,2]
[377946229,1754623850812,-151.0,0.0001889,2]
[377946231,1754623850821,-400.0,0.0001889,2]
[377946233,1754623850831,-165.695591,0.0001889,2]
[377946235,1754623850840,-400.0,0.0001889,2]
[377946237,1754623850850,-400.0,0.0001889,2]
[377946239,1754623850859,-400.0,0.0001889,2]
[377946241,1754623850869,-751.42,0.0001889,2]
[377946243,1754623850878,-400.0,0.0001889,2]
[377946245,1754623850887,-400.0,0.0001889,2]
[377946247,1754623850896,-400.0,0.0001889,2]
[377946249,1754623850906,-681.53,0.0001889,2]
[377946251,1754623850915,-1005.3,0.0001889,2]
[377946253,1754623850925,-325.61926244,0.0001889,2]
[377946255,1754623850937,-786.69,0.0001889,2]
[377946257,1754623850946,-400.0,0.0001889,2]
[377946259,1754623850956,-1397.2,0.0001889,2]
[377946261,1754623850966,-418.98,0.0001889,2]
[377946263,1754623850975,-954.99,0.0001889,2]
[377946265,1754623850985,-928.45,0.0001889,2]
[377946267,1754623850995,-400.0,0.0001889,2]
[377946269,1754623851005,-400.0,0.0001889,2]
[377946271,1754623851015,-950.56,0.0001889,2]
[377946272,1754623851024,-400.0,0.0001889,2]
[377946273,1754623851033,-1173.17,0.0001889,2]
[377946274,1754623851043,-400.0,0.0001889,2]
[377946275,1754623851052,-400.0,0.0001889,2]
[377946276,1754623851062,-455.11313072,0.0001889,2]
[377946277,1754623851072,-400.0,0.0001889,2]
[377946278,1754623851082,-400.0,0.0001889,2]
[377946279,1754623851091,-500.0,0.0001889,2]
[377946280,1754623851100,-400.0,0.0001889,2]
[377946281,1754623851110,-456.09031702,0.0001889,2]
[377946282,1754623851119,-400.0,0.0001889,2]
[377946283,1754623851128,-400.0,0.0001889,2]
[377946284,1754623851138,-954.68,0.0001889,2]
[377946286,1754623851147,-508.36,0.0001889,2]
[377946288,1754623851156,-834.97,0.0001889,2]
[377946290,1754623851166,-1083.42,0.0001889,2]
[377946292,1754623851175,-714.02,0.0001889,2]
[377946294,1754623851185,-1673.98,0.0001889,2]
[377946296,1754623851194,-400.0,0.0001889,2]
[377946298,1754623851203,-1129.16,0.0001889,2]
[377946300,1754623851212,-400.0,0.0001889,2]
[377946302,1754623851222,-400.0,0.0001889,2]
[377946304,1754623851231,-400.0,0.0001889,2]
[377946306,1754623851240,-400.0,0.0001889,2]
[377946308,1754623851249,-400.0,0.0001889,2]
[377946310,1754623851258,-1278.81,0.0001889,2]
[377946312,1754623851267,-400.0,0.0001889,2]
[377946314,1754623851276,-905.04,0.0001889,2]
[377946316,1754623851285,-400.0,0.0001889,2]
[377946318,1754623851294,-632.97,0.0001889,2]
[377946320,1754623851303,-400.0,0.0001889,2]
[377946322,1754623851315,-539.69,0.0001889,2]
[377946324,1754623851325,-400.0,0.0001889,2]
[377946326,1754623851334,-1871.47,0.0001889,2]
[377946328,1754623851343,-400.0,0.0001889,2]
[377946330,1754623851354,-400.0,0.0001889,2]
[377946332,1754623851364,-910.64,0.0001889,2]
[377946334,1754623851373,-941.7,0.0001889,2]
[377946336,1754623851383,-442.75,0.0001889,2]
[377946338,1754623851393,-940.26,0.0001889,2]
[377946340,1754623851402,-733.3,0.0001889,2]
[377946342,1754623851411,-537.32209012,0.0001889,2]
[377946344,1754623851422,-400.0,0.0001889,2]
[377946346,1754623851431,-1074.23,0.0001889,2]
[377946348,1754623851442,-400.0,0.0001889,2]
[377946350,1754623851451,-646.66,0.0001889,2]
[377946352,1754623851461,-400.0,0.0001889,2]
[377946354,1754623851470,-408.96,0.0001889,2]
[377946357,1754623851479,-432.44,0.0001889,2]
[377946359,1754623851488,-400.0,0.0001889,2]
[377946361,1754623851497,-1173.02,0.0001889,2]
[377946363,1754623851506,-400.0,0.0001889,2]
[377946365,1754623851515,-1306.13,0.0001889,2]
[377946367,1754623851524,-483.93878192,0.0001889,2]
[377946369,1754623851533,-400.0,0.0001889,2]
[377946371,1754623851543,-400.0,0.0001889,2]
[377946373,1754623851552,-1314.6,0.0001889,2]
[377946375,1754623851561,-1821.09,0.0001889,2]
[377946377,1754623851570,-400.0,0.0001889,2]
[377946379,1754623851579,-705.08,0.0001889,2]
[377946381,1754623851588,-400.0,0.0001889,2]
[377946383,1754623851597,-792.4,0.0001889,2]
[377946385,1754623851606,-400.0,0.0001889,2]
[377946387,1754623851615,-510.13,0.0001889,2]
[377946389,1754623851624,-1620.83,0.0001889,2]
[377946391,1754623851633,-400.0,0.0001889,2]
[377946393,1754623851642,-400.0,0.0001889,2]
[377946395,1754623851651,-403.42,0.0001889,2]
[377946397,1754623851660,-570.31,0.0001889,2]
[377946399,1754623851669,-1509.78,0.0001889,2]
[377946401,1754623851678,-643.41,0.0001889,2]
[377946403,1754623851689,-443.31,0.0001889,2]
[377946405,1754623851698,-404.39,0.0001889,2]
[377946407,1754623851707,-1301.85,0.0001889,2]
[377946409,1754623851716,-400.0,0.0001889,2]
[377946411,1754623851725,-400.0,0.0001889,2]
[377946413,1754623851734,-400.0,0.0001889,2]
[377946415,1754623851743,-634.27,0.0001889,2]
[377946417,1754623851752,-400.0,0.0001889,2]
[377946419,1754623851761,-400.0,0.0001889,2]
[377946421,1754623851771,-400.0,0.0001889,2]
[377946423,1754623851780,-151.0,0.0001889,2]
[377946425,1754623851789,-151.0,0.0001889,2]
[377946427,1754623851799,-151.0,0.0001889,2]
[377946429,1754623851809,-151.0,0.0001889,2]
[377946431,1754623851818,-400.0,0.0001889,2]
[377946433,1754623851827,-905.6,0.0001889,2]
[377946435,1754623851836,-588.62,0.0001889,2]
[377946437,1754623851845,-422.23,0.0001889,2]
[377946439,1754623851854,-400.0,0.0001889,2]
[377946441,1754623851863,-1147.81,0.0001889,2]
[377946443,1754623851872,-264.86155788,0.0001889,2]
[377946445,1754623851881,-400.0,0.0001889,2]
[377946447,1754623851890,-524.47,0.0001889,2]
[377946449,1754623851900,-400.0,0.0001889,2]
[377946451,1754623851909,-400.0,0.0001889,2]
[377946453,1754623851918,-1173.71,0.0001889,2]
[377946455,1754623851927,-400.0,0.0001889,2]
[377946457,1754623851938,-638.32,0.0001889,2]
[377946459,1754623851947,-1292.06,0.0001889,2]
[377946461,1754623851956,-400.0,0.0001889,2]
[377946463,1754623851965,-635.43,0.0001889,2]
[377946466,1754623851975,-2036.72,0.0001889,2]
[377946468,1754623851985,-400.0,0.0001889,2]
[377946470,1754623851994,-400.0,0.0001889,2]
[377946472,1754623852003,-1245.68,0.0001889,2]
[377946474,1754623852012,-400.0,0.0001889,2]
[377946476,1754623852022,-400.0,0.0001889,2]
[377946478,1754623852031,-1653.01,0.0001889,2]
[377946480,1754623852040,-400.0,0.0001889,2]
[377946482,1754623852049,-816.58,0.0001889,2]
[377946484,1754623852058,-400.0,0.0001889,2]
[377946486,1754623852068,-468.36,0.0001889,2]
[377946488,1754623852077,-883.09,0.0001889,2]
[377946490,1754623852086,-400.0,0.0001889,2]
[377946492,1754623852095,-882.06,0.0001889,2]
[377946494,1754623852104,-557.27,0.0001889,2]
[377946496,1754623852114,-1638.78,0.0001889,2]
[377946498,1754623852123,-1421.25,0.0001889,2]
[377946500,1754623852132,-426.74,0.0001889,2]
[377946502,1754623852141,-1507.95,0.0001889,2]
[377946504,1754623852151,-789.69,0.0001889,2]
[377946506,1754623852161,-400.0,0.0001889,2]
[377946508,1754623852170,-400.0,0.0001889,2]
[377946510,1754623852179,-716.92,0.0001889,2]
[377946512,1754623852190,-400.0,0.0001889,2]
[377946514,1754623852199,-483.83,0.0001889,2]
[377946516,1754623852208,-400.0,0.0001889,2]
[377946518,1754623852218,-400.0,0.0001889,2]
[377946520,1754623852227,-467.31079005,0.0001889,2]
[377946522,1754623852236,-400.0,0.0001889,2]
[377946524,1754623852246,-1252.44,0.0001889,2]
[377946526,1754623852256,-289.22238003,0.0001889,2]
[377946528,1754623852265,-634.91,0.0001889,2]
[377946530,1754623852275,-400.0,0.0001889,2]
[377946532,1754623852284,-795.16,0.0001889,2]
[377946534,1754623852294,-1340.47,0.0001889,2]
[377946536,1754623852303,-851.66,0.0001889,2]
[377946538,1754623852316,-1222.69,0.0001889,2]
[377946540,1754623852325,-400.0,0.0001889,2]
[377946542,1754623852335,-7498.02,0.0001889,2]
[377946544,1754623852344,-151.0,0.0001889,2]
[377946546,1754623852355,-151.0,0.0001889,2]
[377946548,1754623852364,-151.0,0.0001889,2]
[377946550,1754623852373,-151.0,0.0001889,2]
[377946552,1754623852383,-1376.24,0.0001889,2]
[377946554,1754623852392,-525.22,0.0001889,2]
[377946556,1754623852401,-1533.42,0.0001889,2]
[377946558,1754623852411,-1109.46,0.0001889,2]
[377946560,1754623852419,-1257.35,0.0001889,2]
[377946562,1754623852429,-1761.88,0.0001889,2]
[377946564,1754623852439,-1552.91,0.0001889,2]
[377946566,1754623852448,-1484.74,0.0001889,2]
[377946568,1754623852456,-967.51,0.0001889,2]
[377946570,1754623852465,-1938.22,0.0001889,2]
[377946572,1754623852474,-1789.85,0.0001889,2]
[377946574,1754623852484,-151.0,0.00018891,2]
[377946576,1754623852492,-164.40740081,0.00018891,2]
[377946578,1754623852502,-151.343612,0.00018891,2]
[377946580,1754623852511,-201.13564522,0.00018891,2]
[377946582,1754623852520,-204.59269473,0.00018891,2]
[377946584,1754623852529,-150.0,0.00018891,2]
[377946586,1754623852538,-151.0,0.00018891,2]
[377946588,1754623852547,-151.0,0.00018891,2]
[377946590,1754623852556,-160.563726,0.00018891,2]
[377946592,1754623852565,-1372.5,0.00018891,2]
[377946594,1754623852576,-151.0,0.00018891,2]
[377946596,1754623852585,-151.0,0.00018891,2]
[377946598,1754623852594,-400.0,0.00018891,2]
[377946600,1754623852603,-1312.27,0.00018891,2]
[377946602,1754623852612,-1032.14,0.00018891,2]
[377946604,1754623852621,-663.5,0.00018891,2]
[377946606,1754623852630,-998.58,0.00018891,2]
[377946608,1754623852639,-1482.35,0.00018891,2]
[377946610,1754623852648,-1343.85,0.00018891,2]
[377946628,1754623852805,-1143.52,0.00018891,2]
[377946630,1754623852815,-2615.77,0.00018891,2]
[377946632,1754623852824,-585.79,0.00018891,2]
[377946634,1754623852833,-462.51,0.00018891,2]
[377946636,1754623852842,-500.0,0.00018891,2]
[377946638,1754623852851,-500.0,0.00018891,2]
[377946640,1754623852860,-1951.49,0.00018891,2]
[377946642,1754623852869,-1000.0,0.00018893,2]
[377946644,1754623852878,-1000.0,0.00018893,2]
[377946646,1754623852887,-1005.3740391,0.00018893,2]
[377946648,1754623852896,-5800.0,0.000189,2]
[377946650,1754623852905,-2155.05177184,0.000189,2]
[377946652,1754623852915,-1634.36,0.000189,2]
[377946654,1754623852923,-622.79966842,0.000189,2]
[377946656,1754623852933,-162.83631065,0.000189,2]
[377946657,1754623852942,-316.3196175,0.000189,2]
[377946658,1754623852951,-4655.49134797,0.000189,2]
[377946659,1754623852961,-1412.63518683,0.000189,2]
[377946660,1754623852970,-151.0,0.000189,2]
[377946661,1754623852979,-5193.61798134,0.000189,2]
[377946662,1754623852988,-970.28369788,0.000189,2]
[377946663,1754623852997,-769.49271146,0.000189,3]
[377946664,1754623853006,-8532.27390625,0.000189,2]
[377946665,1754623853015,-500.0,0.000189,2]
[377946666,1754623853024,-500.0,0.00018955,2]
[377946667,1754623853033,-1000.0,0.00018958,2]
[377946668,1754623853043,-7783.0,0.00018959,2]
[377946670,1754623853052,-26280.0,0.00018959,2]
[377946672,1754623853061,-7828.0,0.00018959,2]
[377946674,1754623853070,-151.0,0.00018959,2]
[377946676,1754623853080,-500.0,0.0001896,2]
[377946678,1754623853089,-29775.89685613,0.00018961,2]
[377946680,1754623853098,-248.736113,0.00018961,2]
[377946682,1754623853109,-194.927114,0.00018961,2]
[377946684,1754623853118,-165.06323213,0.00018973,2]
[377946686,1754623853128,-501.16867621,0.00018973,2]
[377946688,1754623853138,-502.42457751,0.00018973,2]
[377946690,1754623853147,-501.55900154,0.00018973,2]
[377946692,1754623853157,-509.98576897,0.00018973,2]
[377946694,1754623853166,-500.20292467,0.00018973,2]
[377946696,1754623853175,-501.3084112,0.00018973,2]
[377946698,1754623853185,-501.36137722,0.00018973,2]
[377946700,1754623853194,-561.07074155,0.00018973,2]
[377946703,1754623853204,-501.07960764,0.00018973,2]
[377946705,1754623853213,-500.53639971,0.00018973,2]
[377946707,1754623853222,-163.2941501,0.00018973,2]
[377946708,1754623853231,-160.12900486,0.00018973,2]
[377946710,1754623853241,-160.2299258,0.00018973,2]
[377946713,1754623853250,-576.24133508,0.00018973,2]
[377946715,1754623853260,-500.56169778,0.00018973,2]
[377946716,1754623853268,-336.19754626,0.00018973,2]
[377946719,1754623853278,-502.27885011,0.00018973,2]
[377946721,1754623853288,-500.76039733,0.00018973,2]
[377946723,1754623853297,-502.39758063,0.00018973,2]
[377946725,1754623853310,-275.34366879,0.00018973,2]
[377946727,1754623853319,-500.97523776,0.00018973,2]
[377946728,1754623853328,-618.05418235,0.00018973,2]
[377946731,1754623853338,-500.33701809,0.00018973,2]
[377946733,1754623853350,-501.7977846,0.00018973,2]
[377946735,1754623853360,-500.0,0.00018973,2]
[377946737,1754623853369,-501.45228398,0.00018973,2]
[377946738,1754623853379,-502.14965898,0.00018973,2]
[377946741,1754623853389,-501.84752481,0.00018973,2]
[377946742,1754623853398,-500.58946144,0.00018973,2]
[377946744,1754623853408,-500.79525483,0.00018973,2]
[377946746,1754623853418,-320.69835076,0.00018973,2]
[377946748,1754623853427,-502.10938362,0.00018973,2]
[377946750,1754623853437,-559.35016041,0.00018973,2]
[377946752,1754623853447,-161.51095259,0.00018973,2]
[377946754,1754623853456,-510.07164817,0.00018973,2]
[377946756,1754623853465,-501.35490553,0.00018973,2]
[377946758,1754623853474,-500.39424986,0.00018973,2]
[377946760,1754623853483,-479.80546345,0.00018973,2]
[377946762,1754623853492,-502.21673899,0.00018973,2]
[377946764,1754623853501,-336.11036175,0.00018973,2]
[377946766,1754623853511,-166.66,0.00018982,2]
[377946768,1754623853520,-329.672754,0.00018986,7]
[377946770,1754623853529,-150.0,0.00018986,2]
[377946772,1754623853538,-150.0,0.00018986,2]
[377946774,1754623853547,-210.62029079,0.00018986,2]
[377946776,1754623853557,-150.0,0.00018986,2]
[377946778,1754623853566,-168.79725398,0.00018986,2]
[377946780,1754623853575,-154.34063905,0.00018986,2]
[377946782,1754623853585,-150.0,0.00018986,2]
[377946784,1754623853595,-606.30622172,0.0001899,2]
[377946786,1754623853604,-606.30622172,0.0001899,2]
[377946788,1754623853613,-606.30622172,0.0001899,2]
[377946790,1754623853622,-3677.3673537,0.00018995,2]
[377946792,1754623853632,-563.5769185,0.00018995,2]
[377946794,1754623853641,-176.2009745,0.00018995,2]
[377946796,1754623853650,-181.156586,0.00018997,2]
[377946798,1754623853659,-250.00000153,0.00018997,2]
[377946800,1754623853667,-605.4666737,0.00018997,2]
[377946802,1754623853677,-1024.1027,0.00018999,2]
[377946804,1754623853685,-1000.0,0.00018999,2]
[377946806,1754623853695,-1000.0,0.00018999,2]